fUST/lending_fUST_20240331
["ID","MTS","AMOUNT","RATE_DAILY","PERIOD"]
[321061739,1711843832766,-501.17561677,0.00038356,4]
[321061740,1711843832776,-552.4541781,0.00038356,4]
[321061741,1711843832785,-500.0,0.00038356,4]
[321061742,1711843832794,-393.34445279,0.00038356,4]
[321061743,1711843832804,-500.0,0.00038356,4]
[321061744,1711843832814,-504.24,0.00038356,4]
[321061745,1711843832823,-1000.0,0.00038356,7]
[321061746,1711843832833,-744.38,0.00038356,4]
[321061747,1711843832842,-500.0,0.00038356,4]
[321061748,1711843832852,-80.89683618,0.00038356,4]
[321061749,1711843832873,-419.10316382,0.00038356,4]
[321061750,1711843832883,-500.0,0.00038356,4]
[321061751,1711843832893,-500.0,0.00038356,4]
[321061752,1711843832902,-500.0,0.00038356,4]
[321061753,1711843832911,-500.0,0.00038356,4]
[321061754,1711843832921,-500.0,0.00038356,4]
[321061755,1711843832930,-500.0,0.00038356,4]
[321061756,1711843832939,-500.0,0.00038356,4]
[321061757,1711843832948,-533.09793369,0.00038356,2]
[321061758,1711843832958,-500.0,0.00038356,4]
[321061759,1711843832966,-500.0,0.00038356,4]
[321061760,1711843832975,-500.0,0.00038356,4]
[321061761,1711843832985,-500.0,0.00038356,4]
[321061762,1711843832996,-500.0,0.00038356,4]
[321061763,1711843833006,-320.18104321,0.00038356,4]
[321061776,1711843838185,-156.92445236,0.00038353,15]
[321061777,1711843838195,-179.81895679,0.00038356,4]
[321061778,1711843838207,-500.0,0.00038356,4]
[321061779,1711843838218,-54.49907146,0.00038356,4]
[321061906,1711844743097,-639.05200644,0.00036256,2]
[321061907,1711844834126,-380.24353122,0.00036256,2]
[321061908,1711844834147,-154.8915759,0.00036256,2]
[321061909,1711844834168,-117.86489288,0.00037355,2]
[321061910,1711844840080,-1351.09597009,0.00037355,2]
[321061911,1711844841132,-196.33456929,0.00037355,2]
[321061912,1711844949734,651.0,0.00035255,2]
[321061913,1711844949754,28.53035844,0.00035255,2]
[321061914,1711844986426,154.8915759,0.00035255,2]
[321061915,1711845004403,154.8915759,0.00035255,2]
[321061916,1711845008970,308.59012422,0.00034902,2]
[321061917,1711845008990,393.98883821,0.00034902,2]
[321061918,1711845010597,259.01116179,0.00036339,2]
[321061919,1711845010617,627.41406637,0.00036339,2]
[321061920,1711845010637,249.21136215,0.00036339,2]
[321061921,1711845026409,155.1393281,0.00035255,2]
[321061951,1711845032260,-5365.45064194,0.00037355,2]
[321061952,1711845032272,-4957.03646065,0.00037355,2]
[321061996,1711845038437,-1808.70296905,0.00037355,2]
[321061997,1711845038448,-314.5905147,0.00037355,2]
[321061998,1711845038457,-193.079248,0.00037355,120]
[321061999,1711845038466,-2336.4378485,0.00037355,2]
[321062000,1711845038477,-380.0,0.00037355,2]
[321062001,1711845038488,-4290.92153692,0.00037424,4]
[321062002,1711845038496,-379.58877878,0.00037587,4]
[321062003,1711845038505,-163.58638896,0.00037972,2]
[321062004,1711845038514,-159.0413578,0.00038216,8]
[321062005,1711845038526,-235.02836297,0.00038253,2]
[321062006,1711845038534,-1000.0,0.00038256,2]
[321062007,1711845038544,-8805.93152674,0.00038316,5]
[321062008,1711845038552,-400.0,0.00038353,5]
[321062009,1711845038562,-400.0,0.00038353,3]
[321062010,1711845038572,-154.95351395,0.00038354,4]
[321062011,1711845038581,-359.08611514,0.00038354,2]
[321062012,1711845038590,-242.44513619,0.00038354,4]
[321062013,1711845038599,-598.85083534,0.00038354,2]
[321062014,1711845038609,-3493.16309807,0.00038354,4]
[321062015,1711845038618,-282.15555204,0.00038354,4]
[321062016,1711845038628,-803.25288155,0.00038354,4]
[321062017,1711845038638,-5005.27295707,0.00038355,4]
[321062018,1711845038649,-1025.20922794,0.00038355,2]
[321062019,1711845038660,-500.0,0.00038355,15]
[321062020,1711845038670,-201.89060011,0.00038355,15]
[321062021,1711845038680,-500.0,0.00038356,4]
[321062022,1711845038690,-500.0,0.00038356,4]
[321062023,1711845038701,-500.0,0.00038356,4]
[321062024,1711845038711,-548.07447361,0.00038356,4]
[321062025,1711845038721,-500.0,0.00038356,4]
[321062026,1711845038729,-510.96668396,0.00038356,4]
[321062027,1711845038740,-500.0,0.00038356,4]
[321062028,1711845038750,-500.0,0.00038356,4]
[321062029,1711845038760,-500.0,0.00038356,4]
[321062030,1711845038770,-500.0,0.00038356,4]
[321062031,1711845038779,-503.76176083,0.00038356,4]
[321062032,1711845038790,-500.0,0.00038356,4]
[321062033,1711845038800,-502.8312106,0.00038356,4]
[321062034,1711845038809,-500.0,0.00038356,4]
[321062035,1711845038819,-502.36092716,0.00038356,4]
[321062036,1711845038828,-503.69259301,0.00038356,4]
[321062037,1711845038838,-475.62176332,0.00038356,4]
[321062038,1711845038847,-500.0,0.00038356,4]
[321062039,1711845038857,-500.0,0.00038356,4]
[321062040,1711845038866,-500.0,0.00038356,4]
[321062041,1711845038876,-500.0,0.00038356,4]
[321062042,1711845038886,-500.0,0.00038356,4]
[321062043,1711845038895,-500.0,0.00038356,4]
[321062044,1711845038905,-500.0,0.00038356,4]
[321062045,1711845038915,-500.0,0.00038356,4]
[321062046,1711845038925,-500.0,0.00038356,4]
[321062047,1711845038934,-151.0,0.00038356,2]
[321062048,1711845038944,-893.63,0.00038356,4]
[321062049,1711845038953,-500.0,0.00038356,4]
[321062050,1711845038962,-500.0,0.00038356,4]
[321062051,1711845038971,-500.0,0.00038356,4]
[321062052,1711845038980,-500.0,0.00038356,4]
[321062053,1711845038989,-950.96,0.00038356,4]
[321062054,1711845038998,-878.27,0.00038356,2]
[321062055,1711845039008,-500.0,0.00038356,4]
[321062056,1711845039017,-3650.61259199,0.00038356,4]
[321062218,1711845044409,-824.3550232,0.00037654,2]
[321062219,1711845044419,-16.46740801,0.00038356,4]
[321062220,1711845044427,-846.98,0.00038356,4]
[321062221,1711845044436,-500.0,0.00038356,4]
[321062222,1711845044446,-1304.38,0.00038356,4]
[321062223,1711845044455,-507.86515138,0.00038356,4]
[321062225,1711845044464,-500.0,0.00038356,4]
[321062226,1711845044473,-500.0,0.00038356,4]
[321062227,1711845044485,-152.79081871,0.00038356,4]
[321062228,1711845044493,-500.0,0.00038356,4]
[321062229,1711845044505,-500.0,0.00038356,4]
[321062230,1711845044513,-500.0,0.00038356,4]
[321062231,1711845044522,-500.0,0.00038356,4]
[321062232,1711845044531,-500.0,0.00038356,4]
[321062233,1711845044540,-500.0,0.00038356,4]
[321062234,1711845044549,-1148.27,0.00038356,4]
[321062235,1711845044558,-500.0,0.00038356,4]
[321062236,1711845044567,-500.0,0.00038356,4]
[321062237,1711845044576,-500.0,0.00038356,4]
[321062238,1711845044586,-500.0,0.00038356,4]
[321062239,1711845044595,-500.0,0.00038356,4]
[321062240,1711845044605,-1053.74,0.00038356,4]
[321062241,1711845044613,-500.0,0.00038356,4]
[321062242,1711845044622,-500.0,0.00038356,4]
[321062243,1711845044631,-577.77363524,0.00038356,4]
[321062244,1711845044640,-500.0,0.00038356,4]
[321062245,1711845044648,-500.0,0.00038356,4]
[321062246,1711845044657,-501.65958658,0.00038356,4]
[321062247,1711845044666,-1104.74,0.00038356,4]
[321062248,1711845044675,-500.0,0.00038356,4]
[321062249,1711845044684,-500.0,0.00038356,4]
[321062250,1711845044693,-11864.1,0.00038356,4]
[321062251,1711845044701,-500.0,0.00038356,4]
[321062252,1711845044710,-500.0,0.00038356,4]
[321062253,1711845044719,-500.0,0.00038356,4]
[321062254,1711845044727,-1124.19,0.00038356,4]
[321062255,1711845044736,-500.0,0.00038356,4]
[321062256,1711845044745,-500.0,0.00038356,4]
[321062257,1711845044754,-500.0,0.00038356,4]
[321062258,1711845044767,-500.0,0.00038356,4]
[321062259,1711845044779,-133.23031467,0.00038356,4]
[321062262,1711845045908,-366.76968533,0.00038356,4]
[321062263,1711845045919,-500.0,0.00038356,4]
[321062264,1711845045931,-1775.31441476,0.00038356,4]
[321062273,1711845046412,-574.50614814,0.00038355,15]
[321062277,1711845046422,-500.46558524,0.00038356,4]
[321062279,1711845046435,-500.0,0.00038356,4]
[321062281,1711845046448,-379.16567802,0.00038356,4]
[321062282,1711845059031,229.53547512,0.00035976,2]
[321062283,1711845059051,666.51260914,0.00035976,2]
[321062284,1711845059073,643.68624317,0.00035976,2]
[321062285,1711845059098,172.27149799,0.00035976,2]
[321062286,1711845145068,633.88616537,0.00035616,2]
[321062293,1711846032175,-453.02023896,0.00036256,2]
[321062294,1711846032197,-152.97723063,0.00037324,8]
[321062295,1711846041138,-6.06412716,0.00037324,8]
[321062296,1711846041161,-224.315005,0.00037355,120]
[321062297,1711846041183,-287.90086784,0.00037355,2]
[321062357,1711846238770,-1004.36511903,0.00037355,2]
[321062358,1711846238782,-1682.77305899,0.00037355,2]
[321062425,1711846240554,-8251.65932659,0.00037355,2]
[321062426,1711846240566,-314.97214758,0.00037355,2]
[321062427,1711846240607,-4024.74620211,0.00037355,2]
[321062603,1711846471911,982.47041794,0.00035,30]
[321062604,1711846515932,352.01349264,0.00035255,2]
[321062605,1711846574868,155.84000164,0.0003173,4]
[321062607,1711846817046,234.67566176,0.00035255,2]
[321062611,1711847118374,412.58728211,0.00035255,2]
[321062612,1711847131168,-171.295322,0.0003686,2]
[321062613,1711847131194,-168.236253,0.00037134,120]
[321062614,1711847131215,-219.9873849,0.00037134,2]
[321062615,1711847131237,-350.0,0.00037154,3]
[321062616,1711847131260,-157.36094728,0.00037154,3]
[321062667,1711847230108,-400.0,0.00037154,3]
[321062668,1711847230133,-400.0,0.00037154,3]
[321062669,1711847230153,-506.0,0.00037155,2]
[321062670,1711847245096,-1348.43636781,0.00037155,2]
[321062686,1711847419703,275.05818808,0.00035055,2]
[321062823,1711847440852,-170.48177,0.00036912,2]
[321062824,1711847440862,-599.91023,0.00037155,2]
[321062891,1711847483699,214.94181192,0.00035055,4]
[321062892,1711847483719,653.0,0.00035055,4]
[321062893,1711847483740,658.72599783,0.00035055,4]
[321062894,1711847483759,658.87149199,0.00035055,4]
[321062895,1711847483779,516.84599351,0.00035055,4]
[321062896,1711847483799,628.77150516,0.00035055,4]
[321062897,1711847483820,443.84417333,0.00035055,4]
[321062898,1711847505176,150.07582667,0.00035055,4]
[321062899,1711847505205,455.8644724,0.00035055,4]
[321062902,1711847721008,233.37212538,0.00035055,2]
[321063142,1711847962108,180.840104,0.0003584,2]
[321063389,1711848022196,155.58141692,0.00035055,2]
[321063757,1711848323381,443.48612384,0.00035055,2]
[321063758,1711848337157,-400.0,0.00036113,3]
[321063759,1711848337181,-400.0,0.00036113,3]
[321063760,1711848337203,-250.0,0.00036114,2]
[321063761,1711848337225,-226.81967207,0.00036114,2]
[321063762,1711848425103,-189.97174521,0.00036014,2]
[321063763,1711848425127,-400.0,0.00036113,3]
[321063764,1711848425148,-6.85554221,0.00036114,2]
[321063765,1711848427090,-8417.06014472,0.00036114,2]
[321063766,1711848427112,-3215.65985528,0.00036114,2]
[321063767,1711848436097,-2014.85575166,0.00036114,2]
[321063768,1711848441097,-595.60015781,0.00036114,2]
[321063769,1711848444165,-1306.0,0.00036114,2]
[321063772,1711848509546,2012.77781474,0.00035753,2]
[321063774,1711848547102,-646.61705851,0.00036114,2]
[321063775,1711848547129,-4554.45616537,0.00036114,2]
[321063776,1711848548604,-12566.81101137,0.00036114,2]
[321063777,1711848548623,-443.5582975,0.00036114,2]
[321063778,1711848548647,-494.736642,0.00036114,120]
[321063779,1711848548666,-3000.0,0.00036114,2]
[321063780,1711848548685,-431.057884,0.00036114,2]
[321063781,1711848548703,-309.7831518,0.00036114,2]
[321063782,1711848570078,138.41522857,0.00036114,2]
[321063783,1711848570100,639.81472708,0.00036114,2]
[321063784,1711848570120,500.0,0.00036114,2]
[321063785,1711848571213,-23621.77004435,0.00036114,2]
[321063788,1711848613382,171.52534774,0.00036114,60]
[321063790,1711848624556,527.70202188,0.00034014,2]
[321063821,1711848632542,-13.19519156,0.00036114,60]
[321063831,1711848637892,-58.08656446,0.00036114,60]
[321063832,1711848637903,-155.40147652,0.00036114,2]
[321063833,1711848637913,-1776.37650934,0.00036952,2]
[321063834,1711848637923,-27.64010973,0.00037052,2]
[321063835,1711848637960,-2107.55985686,0.00037052,2]
[321063836,1711848637970,-151.567,0.00037131,30]
[321063837,1711848637979,-463.20271345,0.00037424,4]
[321063838,1711848637989,-1162.96946593,0.00037424,4]
[321063839,1711848637998,-153.0,0.00037478,2]
[321063840,1711848638007,-881.08390317,0.00037721,2]
[321063841,1711848638016,-57.89269528,0.0003826,18]
[321063878,1711848643381,-253.10221469,0.0003826,18]
[321063893,1711848662191,43.60797812,0.00036014,2]
[321063899,1711848757566,265.8494264,0.00035654,2]
[321063901,1711848777096,155.1393281,0.00035654,2]
[321063903,1711848926024,351.80134792,0.00034014,2]
[321063907,1711849227472,234.53423195,0.00034014,2]
[321063908,1711849529152,307.36290095,0.00035621,2]
[321063909,1711849531160,-1121.24403703,0.00036014,2]
[321063910,1711849625085,-1261.9418944,0.00036014,2]
[321063911,1711849625115,-643.68624317,0.00036014,2]
[321063912,1711849643131,-666.51260914,0.00036014,2]
[321063913,1711849648103,-1169.28,0.00036014,2]
[321063916,1711849747099,-4214.96349219,0.00036014,2]
[321063917,1711849747120,-371.052481,0.00036114,120]
[321063918,1711849747140,-215.528942,0.00036114,2]
[321063919,1711849747160,-170.48177,0.00036677,2]
[321063932,1711849830356,204.90860063,0.00033914,2]
[321063969,1711849833263,-894.78774108,0.00037053,2]
[321063971,1711849833275,-13611.3891118,0.00037195,2]
[321063973,1711849833285,-1189.00509003,0.0003826,18]
[321063975,1711849833294,-1687.55729158,0.0003828,7]
[321063978,1711849833305,-167.332095,0.000383,2]
[321063980,1711849833314,-2835.80716045,0.0003831,120]
[321063981,1711849833324,-243.20211305,0.00038354,4]
[321063983,1711849833332,-215.80531862,0.00038354,4]
[321063985,1711849833342,-155.4307891,0.00038354,4]
[321063987,1711849833351,-155.88337888,0.00038354,4]
[321063989,1711849833360,-230.33276673,0.00038354,4]
[321063991,1711849833368,-155.39558152,0.00038354,4]
[321063993,1711849833377,-366.51260914,0.00038354,4]
[321063995,1711849833386,-1330.80851493,0.00038355,120]
[321063997,1711849833395,-547.86056216,0.00038355,2]
[321063999,1711849833404,-8355.70943918,0.00038355,4]
[321064001,1711849833415,-2948.21499032,0.00038355,5]
[321064003,1711849833425,-151.0,0.00038355,2]
[321064005,1711849833434,-169.318814,0.00038355,2]
[321064007,1711849833444,-222.239568,0.00038355,2]
[321064009,1711849833453,-151.0,0.00038355,2]
[321064011,1711849833462,-151.0,0.00038355,2]
[321064013,1711849833471,-500.0,0.00038355,15]
[321064015,1711849833480,-245.0353955,0.00038355,15]
[321064017,1711849833489,-500.0,0.00038355,15]
[321064019,1711849833498,-500.0,0.00038355,15]
[321064021,1711849833507,-500.0,0.00038355,15]
[321064023,1711849833516,-500.0,0.00038355,15]
[321064025,1711849833525,-500.0,0.00038355,15]
[321064027,1711849833534,-500.0,0.00038355,15]
[321064029,1711849833543,-500.0,0.00038355,15]
[321064031,1711849833553,-502.56806666,0.00038356,4]
[321064033,1711849833562,-504.08768691,0.00038356,4]
[321064035,1711849833571,-500.7694872,0.00038356,4]
[321064037,1711849833579,-500.6837492,0.00038356,4]
[321064039,1711849833589,-501.34698808,0.00038356,4]
[321064041,1711849833597,-500.0,0.00038356,4]
[321064043,1711849833606,-504.56003072,0.00038356,4]
[321064045,1711849833615,-500.38574208,0.00038356,4]
[321064046,1711849833624,-500.42066467,0.00038356,4]
[321064048,1711849833632,-504.44219198,0.00038356,4]
[321064050,1711849833641,-500.29710232,0.00038356,4]
[321064052,1711849833650,-504.11743784,0.00038356,4]
[321064054,1711849833659,-507.74996895,0.00038356,4]
[321064056,1711849833668,-503.7556498,0.00038356,4]
[321064058,1711849833677,-500.77709699,0.00038356,4]
[321064059,1711849833686,-502.65601294,0.00038356,4]
[321064060,1711849833696,-500.0,0.00038356,4]
[321064061,1711849833705,-504.68729692,0.00038356,4]
[321064062,1711849833714,-500.20687831,0.00038356,4]
[321064063,1711849833723,-501.15504627,0.00038356,4]
[321064064,1711849833732,-500.66900747,0.00038356,4]
[321064065,1711849833741,-500.74034514,0.00038356,4]
[321064066,1711849833750,-500.0,0.00038356,4]
[321064067,1711849833759,-500.29566991,0.00038356,4]
[321064069,1711849833769,-500.39486159,0.00038356,4]
[321064071,1711849833778,-501.08672484,0.00038356,4]
[321064073,1711849833787,-501.14167845,0.00038356,4]
[321064075,1711849833797,-502.30509329,0.00038356,4]
[321064077,1711849833805,-501.34347449,0.00038356,4]
[321064079,1711849833814,-857.01,0.00038356,4]
[321064080,1711849833824,-841.96,0.00038356,2]
[321064081,1711849833833,-384.6601605,0.00038356,4]
[321064083,1711849833842,-500.0,0.00038356,4]
[321064084,1711849833851,-501.30077524,0.00038356,4]
[321064086,1711849833860,-1000.0,0.00038356,7]
[321064088,1711849833869,-713.76,0.00038356,4]
[321064090,1711849833878,-158.75624285,0.00038356,4]
[321064091,1711849833888,-500.0,0.00038356,4]
[321064093,1711849833896,-500.0,0.00038356,4]
[321064095,1711849833906,-505.99443,0.00038356,4]
[321064098,1711849833915,-500.0,0.00038356,4]
[321064099,1711849833925,-500.0,0.00038356,4]
[321064101,1711849833934,-500.6391195,0.00038356,4]
[321064103,1711849833943,-500.0,0.00038356,4]
[321064105,1711849833952,-504.87616539,0.00038356,4]
[321064116,1711849834042,-500.0,0.00038356,4]
[321064118,1711849834053,-501.75237849,0.00038356,4]
[321064120,1711849834062,-501.49873432,0.00038356,4]
[321064121,1711849834071,-501.34574509,0.00038356,4]
[321064122,1711849834080,-500.0,0.00038356,4]
[321064123,1711849834090,-645.55608467,0.00038356,4]
[321064124,1711849834099,-500.0,0.00038356,4]
[321064125,1711849834108,-500.0,0.00038356,4]
[321064126,1711849834117,-507.86030622,0.00038356,4]
[321064127,1711849834128,-500.0,0.00038356,4]
[321064128,1711849834137,-500.45185183,0.00038356,4]
[321064129,1711849834146,-500.0,0.00038356,4]
[321064130,1711849834156,-501.73340776,0.00038356,4]
[321064131,1711849834166,-501.38713471,0.00038356,4]
[321064132,1711849834174,-500.55075114,0.00038356,4]
[321064133,1711849834183,-135.08989115,0.00038356,4]
[321064249,1711849840241,-617.82458754,0.00038355,15]
[321064251,1711849840250,-234.73013242,0.00038356,4]
[321064252,1711849840260,-502.57356002,0.00038356,4]
[321064253,1711849840269,-500.0,0.00038356,4]
[321064254,1711849840279,-500.0,0.00038356,4]
[321064255,1711849840288,-500.0,0.00038356,4]
[321064256,1711849840297,-500.0,0.00038356,4]
[321064257,1711849840307,-597.73210622,0.00038356,4]
[321064258,1711849840316,-501.74352579,0.00038356,4]
[321064259,1711849840326,-500.0,0.00038356,4]
[321064260,1711849840335,-500.0,0.00038356,4]
[321064261,1711849840344,-500.0,0.00038356,4]
[321064262,1711849840353,-501.50568575,0.00038356,4]
[321064263,1711849840363,-500.0,0.00038356,4]
[321064264,1711849840372,-500.0,0.00038356,4]
[321064265,1711849840382,-9.14062656,0.00038356,4]
[321064317,1711849855770,285.09139937,0.0003631,2]
[321064318,1711849855790,656.86708859,0.0003631,2]
[321064319,1711849855811,639.81472708,0.0003631,2]
[321064320,1711849855832,259.75707445,0.0003631,2]
[321064349,1711850072985,165.23432636,0.00022,2]
[321064351,1711850217831,753.11377389,0.00036,2]
[321064353,1711850747151,-193.41774057,0.0003621,2]
[321064354,1711850826105,-627.69443248,0.0003621,2]
[321064355,1711850832098,-527.32419476,0.0003621,2]
[321064356,1711850832118,-43.51580524,0.00036256,2]
[321064357,1711850846075,-235.0921722,0.00036256,2]
[321064358,1711850846095,-301.04335764,0.0003631,2]
[321064359,1711850846116,-180.840104,0.00036468,2]
[321064360,1711850846135,-373.56140374,0.00036482,2]
[321064361,1711850846157,-159.54115993,0.00036482,8]
[321064362,1711850846178,-98.3581703,0.00036521,3]
[321064363,1711850962123,-443.0451606,0.00036521,4]
[321064364,1711850962145,-8843.99339439,0.00036522,2]
[321064365,1711850966116,-12153.28496715,0.00036522,2]
[321064366,1711850966142,-3902.72163846,0.00036522,2]
[321064367,1711850966163,-596.254022,0.00036583,120]
[321064368,1711850966184,-336.57666,0.00036869,2]
[321064374,1711851020094,655.3180164,0.00036521,4]
[321064375,1711851020115,1076.16915408,0.00036521,4]
[321064419,1711851032356,-373.5614037,0.00036926,2]
[321064421,1711851032366,-255.21010146,0.00037369,2]
[321064437,1711851035754,230.15265544,0.00034422,2]
[321064492,1711851038375,-118.35130224,0.00037369,2]
[321064494,1711851038384,-609.36280932,0.00037499,2]
[321064605,1711851040385,-566.12775648,0.00037499,2]
[321064607,1711851040395,-373.5614037,0.00037813,2]
[321064609,1711851040403,-156.6241977,0.0003789,2]
[321064610,1711851040414,-373.5614037,0.00038256,2]
[321064612,1711851040423,-264.78196609,0.00038355,15]
[321064614,1711851040433,-500.0,0.00038355,15]
[321064616,1711851040442,-458.48532658,0.00038355,15]
[321064618,1711851040451,-500.0,0.00038355,15]
[321064620,1711851040460,-500.0,0.00038356,4]
[321064621,1711851040469,-500.0,0.00038356,4]
[321064623,1711851040478,-517.84166397,0.00038356,4]
[321064625,1711851040488,-436.3086431,0.00038356,4]
[321064628,1711851040511,-63.6913569,0.00038356,4]
[321064630,1711851040520,-500.0,0.00038356,4]
[321064631,1711851040530,-500.0,0.00038356,4]
[321064632,1711851040539,-503.15214119,0.00038356,4]
[321064633,1711851040548,-209.35929019,0.00038356,4]
[321064634,1711851040557,-501.02177958,0.00038356,4]
[321064635,1711851040566,-500.0,0.00038356,4]
[321064636,1711851040577,-514.10149758,0.00038356,4]
[321064637,1711851040588,-500.0,0.00038356,4]
[321064639,1711851040596,-502.41376644,0.00038356,4]
[321064640,1711851040605,-494.05182939,0.00038356,4]
[321064720,1711851046392,-5.94817061,0.00038356,4]
[321064721,1711851046402,-319.01939302,0.00038356,4]
[321064722,1711851055695,3387.54022199,0.00036869,4]
[321064725,1711851942226,-242.56537549,0.00036122,120]
[321064726,1711851956709,242.7511055,0.00035548,2]
[321064727,1711852027161,-346.99664051,0.00036122,120]
[321064728,1711852027181,-248.36431945,0.00036156,2]
[321064729,1711852027201,-400.0,0.00036188,3]
[321064730,1711852027221,-9801.68193172,0.00036189,2]
[321064731,1711852028086,-1855.34611691,0.00036189,2]
[321064740,1711852156127,-853.85038407,0.00036189,2]
[321064741,1711852156148,-236.42168791,0.00036256,2]
[321064742,1711852156168,-159.54115991,0.00036295,7]
[321064743,1711852156187,-245.0,0.00036393,3]
[321064744,1711852156208,-24900.0,0.00036394,2]
[321064745,1711852156227,-706.613841,0.00036395,2]
[321064746,1711852156247,-253.61982632,0.00036769,2]
[321064747,1711852156266,-262.67501443,0.00036869,4]
[321064777,1711852232495,-253.61982629,0.00037141,2]
[321064778,1711852232504,-596.13,0.00037356,120]
[321064780,1711852232514,-253.61982629,0.00037513,2]
[321064781,1711852232524,-154.1343111,0.00037578,2]
[321064782,1711852232533,-253.61982629,0.00037884,2]
[321064783,1711852232543,-1000.0,0.00038256,2]
[321064784,1711852232552,-253.61982629,0.00038256,2]
[321064785,1711852232562,-583.0,0.000383,2]
[321064786,1711852232572,-306.0,0.00038329,2]
[321064787,1711852232581,-408.31848763,0.00038356,4]
[321064788,1711852232590,-503.38034366,0.00038356,4]
[321064789,1711852232599,-503.83582621,0.00038356,4]
[321064790,1711852232608,-509.10790146,0.00038356,4]
[321064792,1711852232618,-505.66198265,0.00038356,4]
[321064793,1711852232627,-504.27616387,0.00038356,4]
[321064795,1711852232638,-500.71963885,0.00038356,4]
[321064797,1711852232648,-501.57009776,0.00038356,4]
[321064798,1711852232658,-500.55042504,0.00038356,4]
[321064799,1711852232667,-157.68265712,0.00038356,4]
[321064800,1711852232676,-315.81958984,0.00038356,4]
[321064801,1711852232686,-504.00533993,0.00038356,4]
[321064802,1711852232695,-500.0,0.00038356,4]
[321064803,1711852232704,-500.0,0.00038356,4]
[321064804,1711852232714,-500.0,0.00038356,4]
[321064805,1711852232723,-151.96225621,0.00038356,4]
[321064806,1711852232733,-507.57508787,0.00038356,4]
[321064807,1711852232743,-492.89520437,0.00038356,4]
[321064808,1711852232753,-345.02737916,0.00038356,4]
[321064809,1711852232762,-500.0,0.00038356,4]
[321064810,1711852232772,-500.0,0.00038356,4]
[321064811,1711852232781,-1000.0,0.00038356,7]
[321064812,1711852232790,-500.0,0.00038356,4]
[321064813,1711852232800,-500.0,0.00038356,4]
[321064814,1711852232810,-684.02,0.00038356,4]
[321064815,1711852232819,-500.0,0.00038356,4]
[321064816,1711852232830,-500.0,0.00038356,4]
[321064817,1711852232844,-156.86708859,0.00038356,4]
[321064818,1711852232853,-502.96756286,0.00038356,4]
[321064819,1711852232862,-500.0,0.00038356,4]
[321064820,1711852232873,-500.0,0.00038356,4]
[321064821,1711852232882,-500.0,0.00038356,4]
[321064822,1711852232891,-507.35657159,0.00038356,4]
[321064823,1711852232901,-500.0,0.00038356,4]
[321064824,1711852232910,-504.79922305,0.00038356,4]
[321064825,1711852232919,-501.06389182,0.00038356,4]
[321064826,1711852232929,-500.0,0.00038356,4]
[321064827,1711852232939,-500.0,0.00038356,4]
[321064828,1711852232948,-500.0,0.00038356,4]
[321064829,1711852232958,-501.32040515,0.00038356,4]
[321064830,1711852232967,-500.0,0.00038356,4]
[321064831,1711852232977,-501.73763508,0.00038356,4]
[321064832,1711852232987,-501.50303438,0.00038356,4]
[321064833,1711852232997,-500.0,0.00038356,4]
[321064834,1711852233007,-500.0,0.00038356,4]
[321064835,1711852233016,-501.73003263,0.00038356,4]
[321064836,1711852233027,-500.0,0.00038356,4]
[321064837,1711852233038,-346.67970101,0.00038356,4]
[321064838,1711852233048,-500.0,0.00038356,4]
[321064839,1711852233058,-151.0,0.00038356,2]
[321064840,1711852233068,-151.0,0.00038356,2]
[321064841,1711852233078,-199.584176,0.00038356,2]
[321064842,1711852233088,-821.3,0.00038356,4]
[321064843,1711852233098,-806.87,0.00038356,2]
[321064844,1711852233107,-500.0,0.00038356,4]
[321064845,1711852233117,-174.52415094,0.00038356,4]